[Event "19th Rochefort Chess Festival - Masters"]
[Site "Rochefort, France"]
[Date "2020.02.28"]
[Round "9.1"]
[White "Duboue, Peio"]
[Black "Gareyev, Timur"]
[Result "1-0"]
[TimeControl "1h30/40 - 30' + [30'']"]
[WhiteElo "2421"]
[BlackElo "2607"]

1. e4 {[%clk 01:30:13]} {[%emt 00:00:46]} e5 {[%clk 01:26:43]} {[%emt
00:04:17]} 2. Nf3 {[%clk 01:30:37]} {[%emt 00:00:05]} Nc6 {[%clk 01:27:02]}
{[%emt 00:00:11]} 3. d4 {[%clk 01:31:03]} {[%emt 00:00:04]} exd4 {[%clk
01:27:24]} {[%emt 00:00:08]} 4. Nxd4 {[%clk 01:31:28]} {[%emt 00:00:03]} Bc5
{[%clk 01:26:00]} {[%emt 00:01:55]} 5. Be3 {[%clk 01:31:52]} {[%emt 00:00:05]}
Qf6 {[%clk 01:23:59]} {[%emt 00:02:31]} 6. c3 {[%clk 01:32:18]} {[%emt
00:00:05]} Nge7 {[%clk 01:24:03]} {[%emt 00:00:26]} 7. g3 {[%clk 01:32:43]}
{[%emt 00:00:05]} O-O {[%clk 01:14:51]} {[%emt 00:09:43]} 8. Bg2 {[%clk
01:32:37]} {[%emt 00:00:35]} Bb6 {[%clk 01:12:34]} {[%emt 00:02:47]} 9. O-O
{[%clk 01:29:00]} {[%emt 00:04:06]} d6 {[%clk 01:12:22]} {[%emt 00:00:42]} 10.
Na3 {[%clk 01:23:11]} {[%emt 00:06:19]} Bd7 {[%clk 01:02:49]} {[%emt 00:10:04]}
11. f4 {[%clk 01:13:00]} {[%emt 00:10:41]} d5 {[%clk 00:52:20]} {[%emt
00:10:59]} 12. exd5 {[%clk 01:08:04]} {[%emt 00:05:26]} Nxd4 {[%clk 00:52:04]}
{[%emt 00:00:46]} 13. Bxd4 {[%clk 01:08:31]} {[%emt 00:00:02]} Nf5 {[%clk
00:47:55]} {[%emt 00:04:39]} 14. Bf2 {[%clk 01:08:48]} {[%emt 00:00:14]} Rae8
{[%clk 00:48:23]} {[%emt 00:00:01]} 15. Nc4 {[%clk 00:59:55]} {[%emt 00:09:23]}
Bb5 {[%clk 00:42:43]} {[%emt 00:06:11]} 16. Nxb6 {[%clk 00:50:41]} {[%emt
00:09:45]} axb6 {[%clk 00:43:10]} {[%emt 00:00:02]} 17. Re1 {[%clk 00:50:49]}
{[%emt 00:00:22]} Rxe1+ {[%clk 00:43:37]} {[%emt 00:00:03]} 18. Qxe1 {[%clk
00:46:51]} {[%emt 00:04:27]} Re8 {[%clk 00:44:05]} {[%emt 00:00:02]} 19. Qd1
{[%clk 00:47:13]} {[%emt 00:00:08]} Nd6 {[%clk 00:44:34]} {[%emt 00:00:02]} 20.
Bd4 {[%clk 00:34:15]} {[%emt 00:13:28]} Qg6 {[%clk 00:37:07]} {[%emt 00:07:56]}
21. b3 {[%clk 00:33:20]} {[%emt 00:01:25]} h5 {[%clk 00:33:19]} {[%emt
00:04:17]} 22. Bf3 {[%clk 00:30:14]} {[%emt 00:03:36]} h4 {[%clk 00:33:14]}
{[%emt 00:00:36]} 23. Bh5 {[%clk 00:25:01]} {[%emt 00:05:42]} Qh6 {[%clk
00:25:13]} {[%emt 00:08:31]} 24. Be5 {[%clk 00:10:46]} {[%emt 00:14:46]} hxg3
{[%clk 00:10:01]} {[%emt 00:15:42]} 25. hxg3 {[%clk 00:11:15]} Ne4 {[%clk
00:09:57]} {[%emt 00:00:33]} 26. Qf3 {[%clk 00:07:38]} {[%emt 00:04:07]} Nd2
{[%clk 00:10:26]} {[%emt 00:00:02]} 27. Qh1 {[%clk 00:06:32]} {[%emt 00:01:36]}
Bd3 {[%clk 00:04:07]} {[%emt 00:06:49]} 28. Rd1 {[%clk 00:02:17]} {[%emt
00:04:44]} Rxe5 {[%clk 00:04:35]} {[%emt 00:00:03]} 29. Bxf7+ {[%clk 00:02:09]}
{[%emt 00:00:38]} Kxf7 {[%clk 00:04:51]} {[%emt 00:00:14]} 30. Qxh6 {[%clk
00:02:35]} {[%emt 00:00:04]} gxh6 {[%clk 00:04:50]} {[%emt 00:00:31]} 31. fxe5
{[%clk 00:00:53]} {[%emt 00:02:12]} Nf3+ {[%clk 00:05:17]} {[%emt 00:00:03]} 32.
Kf2 {[%clk 00:01:17]} {[%emt 00:00:06]} Nxe5 {[%clk 00:05:45]} {[%emt
00:00:02]} 33. Ke3 {[%clk 00:01:17]} {[%emt 00:00:30]} Bf5 {[%clk 00:05:57]}
{[%emt 00:00:17]} 34. c4 {[%clk 00:00:35]} {[%emt 00:01:13]} Kf6 {[%clk
00:06:27]} 35. Rf1 {[%clk 00:00:40]} {[%emt 00:00:25]} h5 {[%clk 00:03:19]}
{[%emt 00:03:37]} 36. Kd4 {[%clk 00:00:48]} {[%emt 00:00:22]} Nd3 {[%clk
00:00:35]} {[%emt 00:03:14]} 37. Rxf5+ {[%clk 00:00:34]} {[%emt 00:00:44]} Kxf5
{[%clk 00:01:04]} {[%emt 00:00:01]} 38. Kxd3 {[%clk 00:00:59]} {[%emt
00:00:06]} Kg4 {[%clk 00:01:33]} 39. b4 {[%clk 00:01:22]} {[%emt 00:00:06]}
Kxg3 {[%clk 00:01:53]} {[%emt 00:00:11]} 40. c5 {[%clk 00:01:49]} {[%emt
00:00:03]} bxc5 {[%clk 00:01:29]} {[%emt 00:00:54]} 41. bxc5 {[%clk 00:02:13]}
{[%emt 00:00:05]} h4 {[%clk 00:01:16]} {[%emt 00:00:43]} 42. d6 {[%clk
00:02:40]} {[%emt 00:00:03]} cxd6 {[%clk 00:01:44]} {[%emt 00:00:03]} 43. cxd6
{[%clk 00:03:06]} {[%emt 00:00:03]} h3 {[%clk 00:02:08]} {[%emt 00:00:06]} 44.
d7 {[%clk 00:03:34]} {[%emt 00:00:02]} h2 {[%clk 00:02:35]} {[%emt 00:00:02]}
45. d8=Q {[%clk 00:04:01]} {[%emt 00:00:03]} h1=Q {[%clk 00:03:00]} {[%emt
00:00:06]} 46. Qg5 {[%clk 00:03:03]} {[%emt 00:01:27]} Kf2 {[%clk 00:03:28]}
{[%emt 00:00:02]} 47. Qe3+ {[%clk 00:03:25]} {[%emt 00:00:08]} Kf1 {[%clk
00:03:17]} {[%emt 00:00:40]} 48. Qc1+ {[%clk 00:03:28]} {[%emt 00:00:29]} 1-0

[Event "19th Rochefort Chess Festival - Masters"]
[Site "Rochefort, France"]
[Date "2020.02.28"]
[Round "9.2"]
[White "Van Den Doel, Erik"]
[Black "Korneev, Oleg"]
[Result "1/2-1/2"]
[TimeControl "1h30/40 - 30' + [30'']"]
[WhiteElo "2583"]
[BlackElo "2505"]

1. Nf3 {[%clk 01:27:49]} {[%emt 00:03:08]} d5 {[%clk 01:26:12]} {[%emt
00:04:49]} 2. g3 {[%clk 01:27:17]} {[%emt 00:01:02]} Bg4 {[%clk 01:25:34]}
{[%emt 00:01:08]} 3. Bg2 {[%clk 01:27:39]} {[%emt 00:00:07]} c6 {[%clk
01:25:43]} {[%emt 00:00:22]} 4. c4 {[%clk 01:27:44]} {[%emt 00:00:25]} e6
{[%clk 01:21:39]} {[%emt 00:04:34]} 5. cxd5 {[%clk 01:27:52]} {[%emt 00:00:22]}
Bxf3 {[%clk 01:17:54]} {[%emt 00:04:15]} 6. Bxf3 {[%clk 01:28:04]} {[%emt
00:00:18]} cxd5 {[%clk 01:18:22]} {[%emt 00:00:02]} 7. O-O {[%clk 01:27:12]}
{[%emt 00:01:21]} Nf6 {[%clk 01:17:38]} {[%emt 00:01:15]} 8. d4 {[%clk
01:27:29]} {[%emt 00:00:13]} Nc6 {[%clk 01:18:03]} {[%emt 00:00:05]} 9. Nc3
{[%clk 01:27:53]} {[%emt 00:00:06]} Be7 {[%clk 01:18:28]} {[%emt 00:00:06]} 10.
e3 {[%clk 01:28:07]} {[%emt 00:00:15]} O-O {[%clk 01:18:49]} {[%emt 00:00:09]}
1/2-1/2

[Event "19th Rochefort Chess Festival - Masters"]
[Site "Rochefort, France"]
[Date "2020.02.28"]
[Round "9.5"]
[White "Jolly, Jean-Francois"]
[Black "Martin Duque, Jesus"]
[Result "0-1"]
[TimeControl "1h30/40 - 30' + [30'']"]
[WhiteElo "2386"]
[BlackElo "2446"]

1. e4 {[%clk 01:23:07]} {[%emt 00:07:51]} e5 {[%clk 01:30:55]} {[%emt
00:00:05]} 2. Nf3 {[%clk 01:23:28]} {[%emt 00:00:09]} Nc6 {[%clk 01:31:22]}
{[%emt 00:00:04]} 3. Bb5 {[%clk 01:23:24]} {[%emt 00:00:34]} a6 {[%clk
01:31:41]} {[%emt 00:00:10]} 4. Ba4 {[%clk 01:23:50]} {[%emt 00:00:04]} Nf6
{[%clk 01:32:01]} {[%emt 00:00:10]} 5. O-O {[%clk 01:23:38]} {[%emt 00:00:41]}
Be7 {[%clk 01:32:11]} {[%emt 00:00:20]} 6. Re1 {[%clk 01:23:28]} {[%emt
00:00:41]} b5 {[%clk 01:32:36]} {[%emt 00:00:05]} 7. Bb3 {[%clk 01:23:55]}
{[%emt 00:00:03]} d6 {[%clk 01:32:59]} {[%emt 00:00:06]} 8. c3 {[%clk
01:24:20]} {[%emt 00:00:05]} O-O {[%clk 01:33:18]} {[%emt 00:00:10]} 9. h3
{[%clk 01:24:46]} {[%emt 00:00:05]} Nb8 {[%clk 01:33:37]} {[%emt 00:00:11]} 10.
d4 {[%clk 01:24:32]} {[%emt 00:00:44]} Nbd7 {[%clk 01:34:00]} {[%emt 00:00:06]}
11. Nbd2 {[%clk 01:24:57]} {[%emt 00:00:05]} Bb7 {[%clk 01:34:24]} {[%emt
00:00:06]} 12. Bc2 {[%clk 01:25:21]} {[%emt 00:00:06]} Re8 {[%clk 01:34:42]}
{[%emt 00:00:12]} 13. Nf1 {[%clk 01:25:45]} {[%emt 00:00:07]} Bf8 {[%clk
01:34:58]} {[%emt 00:00:13]} 14. Ng3 {[%clk 01:26:09]} {[%emt 00:00:06]} g6
{[%clk 01:35:21]} {[%emt 00:00:07]} 15. a4 {[%clk 01:20:26]} {[%emt 00:06:14]}
c5 {[%clk 01:35:24]} {[%emt 00:00:26]} 16. d5 {[%clk 01:17:46]} {[%emt
00:03:10]} c4 {[%clk 01:35:52]} {[%emt 00:00:03]} 17. Bg5 {[%clk 01:16:22]}
{[%emt 00:01:53]} Nc5 {[%clk 01:29:03]} {[%emt 00:07:19]} 18. Qd2 {[%clk
00:57:11]} {[%emt 00:19:41]} Be7 {[%clk 01:28:58]} {[%emt 00:00:34]} 19. Be3
{[%clk 00:56:19]} {[%emt 00:01:22]} Nfd7 {[%clk 01:23:17]} {[%emt 00:06:10]} 20.
h4 {[%clk 00:53:57]} {[%emt 00:02:53]} h5 {[%clk 01:12:01]} {[%emt 00:11:46]}
21. Ng5 {[%clk 00:52:19]} {[%emt 00:02:08]} Bf8 {[%clk 01:00:08]} {[%emt
00:12:22]} 22. Rf1 {[%clk 00:49:09]} {[%emt 00:03:42]} Bg7 {[%clk 00:55:26]}
{[%emt 00:05:11]} 23. f3 {[%clk 00:36:11]} {[%emt 00:13:29]} Qc7 {[%clk
00:52:36]} {[%emt 00:03:19]} 24. Nh1 {[%clk 00:32:23]} {[%emt 00:04:19]} f6
{[%clk 00:41:29]} {[%emt 00:11:36]} 25. Nh3 {[%clk 00:32:22]} {[%emt 00:00:32]}
Nb6 {[%clk 00:41:54]} {[%emt 00:00:05]} 26. axb5 {[%clk 00:29:52]} {[%emt
00:03:00]} axb5 {[%clk 00:39:55]} {[%emt 00:02:30]} 27. Rxa8 {[%clk 00:21:40]}
{[%emt 00:08:42]} Rxa8 {[%clk 00:40:20]} {[%emt 00:00:05]} 28. g4 {[%clk
00:22:01]} {[%emt 00:00:09]} Bc8 {[%clk 00:28:38]} {[%emt 00:12:11]} 29. Qg2
{[%clk 00:20:15]} {[%emt 00:02:16]} Qd7 {[%clk 00:24:45]} {[%emt 00:04:24]} 30.
N3f2 {[%clk 00:18:52]} {[%emt 00:01:53]} Ra2 {[%clk 00:23:03]} {[%emt
00:02:12]} 31. gxh5 {[%clk 00:18:22]} {[%emt 00:01:00]} gxh5 {[%clk 00:22:24]}
{[%emt 00:01:08]} 32. Ng3 {[%clk 00:17:40]} {[%emt 00:01:13]} Qf7 {[%clk
00:22:15]} {[%emt 00:00:39]} 33. Nd1 {[%clk 00:16:28]} {[%emt 00:01:41]} Nba4
{[%clk 00:19:13]} {[%emt 00:03:32]} 34. Bc1 {[%clk 00:12:09]} {[%emt 00:04:50]}
Nd3 {[%clk 00:17:21]} {[%emt 00:02:22]} 35. Bxd3 {[%clk 00:12:25]} {[%emt
00:00:14]} cxd3 {[%clk 00:17:48]} {[%emt 00:00:03]} 36. Kh1 {[%clk 00:11:00]}
{[%emt 00:01:54]} Qg6 {[%clk 00:14:28]} {[%emt 00:03:51]} 37. Rg1 {[%clk
00:11:04]} {[%emt 00:00:26]} Kh7 {[%clk 00:13:50]} {[%emt 00:01:07]} 38. Nxh5
{[%clk 00:04:10]} {[%emt 00:07:24]} Qxg2+ {[%clk 00:13:58]} {[%emt 00:00:23]}
39. Rxg2 {[%clk 00:04:37]} {[%emt 00:00:03]} Bh8 {[%clk 00:14:12]} {[%emt
00:00:15]} 40. Be3 {[%clk 00:02:12]} {[%emt 00:02:56]} Ra1 {[%clk 00:11:39]}
{[%emt 00:03:04]} 41. Rg1 {[%clk 00:29:24]} {[%emt 00:03:18]} Rb1 {[%clk
00:39:03]} {[%emt 00:03:06]} 42. b4 {[%clk 00:27:18]} {[%emt 00:02:35]} f5
{[%clk 00:35:02]} {[%emt 00:04:31]} 43. exf5 {[%clk 00:13:47]} {[%emt
00:14:02]} Bb7 {[%clk 00:31:49]} {[%emt 00:03:43]} 44. Ng3 {[%clk 00:11:06]}
{[%emt 00:03:14]} Bxd5 {[%clk 00:30:59]} {[%emt 00:01:17]} 45. Ne4 {[%clk
00:11:22]} {[%emt 00:00:14]} Bg7 {[%clk 00:30:57]} {[%emt 00:00:32]} 46. Kh2
{[%clk 00:07:06]} {[%emt 00:04:46]} Bb3 {[%clk 00:27:20]} {[%emt 00:04:06]} 47.
Ndf2 {[%clk 00:05:21]} {[%emt 00:02:15]} Rxg1 {[%clk 00:26:29]} {[%emt
00:01:22]} 48. Kxg1 {[%clk 00:05:47]} {[%emt 00:00:04]} d5 {[%clk 00:26:04]}
{[%emt 00:00:54]} 49. Ng5+ {[%clk 00:06:00]} {[%emt 00:00:17]} Kg8 {[%clk
00:26:33]} {[%emt 00:00:02]} 50. Nxd3 {[%clk 00:06:05]} {[%emt 00:00:25]} Nxc3
{[%clk 00:26:40]} {[%emt 00:00:23]} 51. Ne6 {[%clk 00:04:28]} {[%emt 00:02:08]}
Bc2 {[%clk 00:24:10]} {[%emt 00:03:00]} 52. Nxg7 {[%clk 00:04:46]} {[%emt
00:00:13]} Bxd3 {[%clk 00:24:37]} {[%emt 00:00:02]} 53. f6 {[%clk 00:05:03]}
{[%emt 00:00:13]} Kf7 {[%clk 00:24:22]} {[%emt 00:00:44]} 54. Bg5 {[%clk
00:05:14]} {[%emt 00:00:19]} d4 {[%clk 00:24:01]} {[%emt 00:00:51]} 55. f4
{[%clk 00:03:39]} {[%emt 00:02:06]} exf4 {[%clk 00:20:42]} {[%emt 00:03:48]} 56.
Nh5 {[%clk 00:03:56]} {[%emt 00:00:26]} f3 {[%clk 00:20:49]} {[%emt 00:00:10]}
57. Kf2 {[%clk 00:02:53]} {[%emt 00:01:33]} Be4 {[%clk 00:15:52]} {[%emt
00:05:27]} 58. Ng3 {[%clk 00:03:06]} {[%emt 00:00:17]} Bd5 {[%clk 00:16:21]}
{[%emt 00:00:01]} 59. Nf1 {[%clk 00:01:42]} {[%emt 00:01:54]} Ne4+ {[%clk
00:13:28]} {[%emt 00:03:23]} 60. Kg1 {[%clk 00:02:09]} {[%emt 00:00:03]} f2+
{[%clk 00:09:03]} {[%emt 00:04:55]} 61. Kh2 {[%clk 00:02:36]} {[%emt 00:00:03]}
Kg6 {[%clk 00:09:03]} {[%emt 00:00:30]} 62. Kh3 {[%clk 00:01:48]} {[%emt
00:01:18]} Bc4 {[%clk 00:05:48]} {[%emt 00:03:45]} 63. Kg2 {[%clk 00:02:06]}
{[%emt 00:00:12]} Bxf1+ {[%clk 00:06:02]} {[%emt 00:00:16]} 64. Kxf1 {[%clk
00:02:32]} {[%emt 00:00:03]} d3 {[%clk 00:06:28]} {[%emt 00:00:04]} 0-1

[Event "19th Rochefort Chess Festival - Masters"]
[Site "Rochefort, France"]
[Date "2020.02.28"]
[Round "9.3"]
[White "Colin, Vincent"]
[Black "Vorobiov, Evgeny E."]
[Result "0-1"]
[TimeControl "1h30/40 - 30' + [30'']"]
[WhiteElo "2359"]
[BlackElo "2520"]

1. e4 {[%clk 01:30:55]} {[%emt 00:00:03]} c5 {[%clk 01:30:54]} {[%emt
00:00:08]} 2. Nc3 {[%clk 01:31:16]} {[%emt 00:00:08]} Nc6 {[%clk 01:30:51]}
{[%emt 00:00:32]} 3. Bb5 {[%clk 01:31:32]} {[%emt 00:00:13]} Nd4 {[%clk
01:31:14]} {[%emt 00:00:08]} 4. Nf3 {[%clk 01:31:48]} {[%emt 00:00:13]} a6
{[%clk 01:31:38]} {[%emt 00:00:07]} 5. Bd3 {[%clk 01:32:11]} {[%emt 00:00:06]}
Nc6 {[%clk 01:30:24]} {[%emt 00:01:44]} 6. O-O {[%clk 01:29:46]} {[%emt
00:02:56]} g6 {[%clk 01:30:43]} {[%emt 00:00:10]} 7. e5 {[%clk 01:30:10]}
{[%emt 00:00:05]} Bg7 {[%clk 01:28:44]} {[%emt 00:02:28]} 8. Re1 {[%clk
01:30:24]} {[%emt 00:00:16]} Nh6 {[%clk 01:27:26]} {[%emt 00:01:48]} 9. Be4
{[%clk 01:21:03]} {[%emt 00:09:51]} Nd4 {[%clk 01:07:56]} {[%emt 00:20:00]} 10.
d3 {[%clk 01:16:20]} {[%emt 00:05:14]} d6 {[%clk 00:43:06]} {[%emt 00:25:21]}
11. exd6 {[%clk 01:12:08]} {[%emt 00:04:41]} Qxd6 {[%clk 00:43:21]} {[%emt
00:00:15]} 12. Nxd4 {[%clk 01:10:28]} {[%emt 00:02:10]} cxd4 {[%clk 00:40:50]}
{[%emt 00:03:01]} 13. Nd5 {[%clk 01:08:45]} {[%emt 00:02:13]} O-O {[%clk
00:39:49]} {[%emt 00:01:32]} 14. a4 {[%clk 01:03:56]} {[%emt 00:05:18]} e6
{[%clk 00:31:57]} {[%emt 00:08:21]} 15. Bf4 {[%clk 01:01:32]} {[%emt 00:02:54]}
e5 {[%clk 00:31:58]} {[%emt 00:00:30]} 16. Bxh6 {[%clk 00:59:47]} {[%emt
00:02:15]} Bxh6 {[%clk 00:32:23]} {[%emt 00:00:06]} 17. a5 {[%clk 01:00:10]}
{[%emt 00:00:06]} Be6 {[%clk 00:30:17]} {[%emt 00:02:36]} 18. Nb6 {[%clk
00:58:02]} {[%emt 00:02:38]} Rab8 {[%clk 00:30:29]} {[%emt 00:00:18]} 19. Qf3
{[%clk 00:55:01]} {[%emt 00:03:31]} Bd2 {[%clk 00:23:17]} {[%emt 00:07:42]} 20.
Re2 {[%clk 00:45:38]} {[%emt 00:09:53]} Bxa5 {[%clk 00:22:06]} {[%emt
00:01:42]} 21. Rxa5 {[%clk 00:42:38]} {[%emt 00:03:30]} Qxb6 {[%clk 00:22:08]}
{[%emt 00:00:28]} 22. Rxe5 {[%clk 00:43:01]} {[%emt 00:00:07]} Qxb2 {[%clk
00:19:06]} {[%emt 00:03:33]} 23. g4 {[%clk 00:41:06]} {[%emt 00:02:25]} Rbc8
{[%clk 00:16:55]} {[%emt 00:02:41]} 24. c4 {[%clk 00:35:37]} {[%emt 00:05:59]}
Qc1+ {[%clk 00:15:15]} {[%emt 00:02:10]} 25. Kg2 {[%clk 00:35:57]} {[%emt
00:00:10]} b5 {[%clk 00:15:30]} {[%emt 00:00:15]} 26. cxb5 {[%clk 00:31:49]}
{[%emt 00:04:38]} axb5 {[%clk 00:15:51]} {[%emt 00:00:09]} 27. Rxb5 {[%clk
00:31:58]} {[%emt 00:00:21]} Qd1 {[%clk 00:09:00]} {[%emt 00:07:21]} 28. Kg3
{[%clk 00:25:24]} {[%emt 00:07:04]} Rc3 {[%clk 00:06:22]} {[%emt 00:03:08]} 29.
Rb4 {[%clk 00:14:06]} {[%emt 00:11:49]} Rd8 {[%clk 00:03:14]} {[%emt 00:03:37]}
30. Qf6 {[%clk 00:13:20]} {[%emt 00:01:16]} Qg1+ {[%clk 00:02:48]} {[%emt
00:00:55]} 31. Bg2 {[%clk 00:12:41]} {[%emt 00:01:09]} Rxd3+ {[%clk 00:03:06]}
{[%emt 00:00:13]} 32. f3 {[%clk 00:13:07]} {[%emt 00:00:04]} Rf8 {[%clk
00:02:51]} {[%emt 00:00:45]} 33. h4 {[%clk 00:10:55]} {[%emt 00:02:42]} Bd5
{[%clk 00:02:34]} {[%emt 00:00:47]} 34. Kf4 {[%clk 00:10:34]} {[%emt 00:00:51]}
Qc1+ {[%clk 00:01:57]} {[%emt 00:01:07]} 35. Kg3 {[%clk 00:10:27]} {[%emt
00:00:37]} Qg1 {[%clk 00:02:22]} {[%emt 00:00:04]} 36. Kf4 {[%clk 00:10:54]}
{[%emt 00:00:04]} Qc1+ {[%clk 00:02:50]} {[%emt 00:00:03]} 37. Kg3 {[%clk
00:10:44]} {[%emt 00:00:41]} Re3 {[%clk 00:01:59]} {[%emt 00:01:21]} 38. Reb2
{[%clk 00:09:00]} {[%emt 00:02:13]} Qg1 {[%clk 00:01:14]} {[%emt 00:01:14]} 39.
Kf4 {[%clk 00:09:00]} {[%emt 00:00:30]} Re6 {[%clk 00:01:27]} {[%emt 00:00:17]}
40. Qxd4 {[%clk 00:08:33]} {[%emt 00:00:57]} Qh2+ {[%clk 00:01:38]} {[%emt
00:00:19]} 0-1

[Event "19th Rochefort Chess Festival - Masters"]
[Site "Rochefort, France"]
[Date "2020.02.28"]
[Round "9.4"]
[White "Burmakin, Vladimir"]
[Black "Maiorov, Nikita"]
[Result "1-0"]
[TimeControl "1h30/40 - 30' + [30'']"]
[WhiteElo "2514"]
[BlackElo "2506"]

1. Nf3 {[%clk 01:30:57]} Nf6 {[%clk 01:21:30]} {[%emt 00:09:30]} 2. g3 {[%clk
01:31:10]} {[%emt 00:00:17]} b6 {[%clk 01:21:15]} {[%emt 00:00:45]} 3. Bg2
{[%clk 01:30:42]} {[%emt 00:00:57]} Bb7 {[%clk 01:21:38]} {[%emt 00:00:08]} 4.
O-O {[%clk 01:30:23]} {[%emt 00:00:48]} e6 {[%clk 01:19:56]} {[%emt 00:02:13]}
5. d3 {[%clk 01:30:29]} {[%emt 00:00:24]} d5 {[%clk 01:20:21]} {[%emt
00:00:05]} 6. c4 {[%clk 01:30:32]} {[%emt 00:00:27]} Be7 {[%clk 01:19:42]}
{[%emt 00:01:09]} 7. cxd5 {[%clk 01:24:18]} {[%emt 00:06:45]} exd5 {[%clk
01:16:55]} {[%emt 00:03:17]} 8. Nh4 {[%clk 01:22:57]} {[%emt 00:01:51]} Qd7
{[%clk 01:04:44]} {[%emt 00:12:42]} 9. Nc3 {[%clk 01:20:19]} {[%emt 00:03:08]}
O-O {[%clk 01:00:44]} {[%emt 00:04:29]} 10. e4 {[%clk 01:16:47]} {[%emt
00:04:01]} dxe4 {[%clk 00:48:39]} {[%emt 00:12:36]} 11. dxe4 {[%clk 01:17:06]}
{[%emt 00:00:12]} Qxd1 {[%clk 00:49:01]} {[%emt 00:00:08]} 12. Rxd1 {[%clk
01:17:23]} {[%emt 00:00:13]} Bc5 {[%clk 00:42:27]} {[%emt 00:07:04]} 13. e5
{[%clk 00:54:16]} {[%emt 00:23:37]} Bxg2 {[%clk 00:41:05]} {[%emt 00:01:53]} 14.
Kxg2 {[%clk 00:54:43]} {[%emt 00:00:02]} Ng4 {[%clk 00:39:49]} {[%emt
00:01:46]} 15. Ne4 {[%clk 00:53:57]} {[%emt 00:01:16]} Nxe5 {[%clk 00:34:28]}
{[%emt 00:05:51]} 16. Nxc5 {[%clk 00:52:53]} {[%emt 00:01:34]} bxc5 {[%clk
00:34:56]} {[%emt 00:00:03]} 17. Rd5 {[%clk 00:51:10]} {[%emt 00:02:13]} f6
{[%clk 00:32:24]} {[%emt 00:03:02]} 18. Rxc5 {[%clk 00:49:26]} {[%emt
00:02:15]} Na6 {[%clk 00:32:40]} {[%emt 00:00:13]} 19. Rc3 {[%clk 00:45:09]}
{[%emt 00:04:46]} Rfd8 {[%clk 00:29:33]} {[%emt 00:03:37]} 20. Bf4 {[%clk
00:44:16]} {[%emt 00:01:23]} Nd3 {[%clk 00:28:35]} {[%emt 00:01:28]} 21. Bxc7
{[%clk 00:44:17]} {[%emt 00:00:29]} Rd5 {[%clk 00:25:22]} {[%emt 00:03:42]} 22.
Nf3 {[%clk 00:27:03]} {[%emt 00:17:43]} Nxb2 {[%clk 00:19:50]} {[%emt
00:06:02]} 23. Bf4 {[%clk 00:26:12]} {[%emt 00:01:22]} Nd3 {[%clk 00:09:14]}
{[%emt 00:11:05]} 24. Be3 {[%clk 00:26:25]} {[%emt 00:00:16]} Nac5 {[%clk
00:09:04]} {[%emt 00:00:41]} 25. Rb1 {[%clk 00:15:53]} {[%emt 00:11:03]} a6
{[%clk 00:08:47]} {[%emt 00:00:48]} 26. Nd4 {[%clk 00:15:49]} {[%emt 00:00:49]}
Re8 {[%clk 00:08:17]} {[%emt 00:00:45]} 27. h3 {[%clk 00:11:09]} {[%emt
00:05:10]} h6 {[%clk 00:08:20]} {[%emt 00:00:27]} 28. Ra3 {[%clk 00:10:43]}
{[%emt 00:00:55]} Re4 {[%clk 00:07:29]} {[%emt 00:01:21]} 29. Ne2 {[%clk
00:06:17]} {[%emt 00:04:57]} Rc4 {[%clk 00:06:15]} {[%emt 00:01:44]} 30. Rc3
{[%clk 00:06:24]} {[%emt 00:00:23]} Rxc3 {[%clk 00:06:38]} {[%emt 00:00:07]} 31.
Nxc3 {[%clk 00:06:45]} {[%emt 00:00:10]} Rd6 {[%clk 00:07:05]} {[%emt
00:00:03]} 32. Rb8+ {[%clk 00:05:05]} {[%emt 00:02:10]} Kh7 {[%clk 00:07:30]}
{[%emt 00:00:04]} 33. Rc8 {[%clk 00:04:59]} {[%emt 00:00:36]} Nd7 {[%clk
00:05:15]} {[%emt 00:02:46]} 34. Rc7 {[%clk 00:04:22]} {[%emt 00:01:06]} N3e5
{[%clk 00:03:41]} {[%emt 00:02:04]} 35. Ne4 {[%clk 00:04:23]} {[%emt 00:00:29]}
Rc6 {[%clk 00:04:05]} {[%emt 00:00:05]} 36. Ra7 {[%clk 00:04:40]} {[%emt
00:00:14]} f5 {[%clk 00:03:47]} {[%emt 00:00:48]} 37. Nd2 {[%clk 00:04:41]}
{[%emt 00:00:28]} Nf6 {[%clk 00:03:01]} {[%emt 00:01:16]} 38. Nb3 {[%clk
00:04:45]} {[%emt 00:00:26]} Kg6 {[%clk 00:01:23]} {[%emt 00:02:08]} 39. Nc5
{[%clk 00:03:21]} {[%emt 00:01:55]} Nc4 {[%clk 00:01:06]} {[%emt 00:00:47]} 40.
Bd4 {[%clk 00:03:36]} {[%emt 00:00:15]} a5 {[%clk 00:01:23]} {[%emt 00:00:13]}
41. Nd3 {[%clk 00:04:02]} {[%emt 00:00:04]} Kh7 {[%clk 00:28:11]} {[%emt
00:03:42]} 42. Ne5 {[%clk 00:31:37]} {[%emt 00:02:55]} Rd6 {[%clk 00:23:58]}
{[%emt 00:04:43]} 43. Bc3 {[%clk 00:30:56]} {[%emt 00:01:11]} Nd2 {[%clk
00:23:28]} {[%emt 00:01:01]} 44. Nf7 {[%clk 00:30:34]} {[%emt 00:00:52]} Rd5
{[%clk 00:23:13]} {[%emt 00:00:44]} 45. Rxa5 {[%clk 00:24:50]} {[%emt
00:06:15]} Nb1 {[%clk 00:19:55]} {[%emt 00:03:48]} 46. Rxd5 {[%clk 00:23:46]}
{[%emt 00:01:34]} Nxd5 {[%clk 00:20:20]} {[%emt 00:00:03]} 47. Bb2 {[%clk
00:23:08]} {[%emt 00:01:08]} Nbc3 {[%clk 00:20:43]} {[%emt 00:00:07]} 48. a3
{[%clk 00:22:11]} {[%emt 00:01:27]} Na4 {[%clk 00:20:54]} {[%emt 00:00:19]} 49.
Bd4 {[%clk 00:22:12]} {[%emt 00:00:48]} Ndc3 {[%clk 00:19:07]} {[%emt
00:01:59]} 50. Bxc3 {[%clk 00:22:11]} {[%emt 00:00:31]} Nxc3 {[%clk 00:19:34]}
{[%emt 00:00:03]} 51. Ne5 {[%clk 00:21:38]} {[%emt 00:01:03]} g5 {[%clk
00:19:56]} {[%emt 00:00:08]} 52. Nd7 {[%clk 00:18:49]} {[%emt 00:03:19]} Na4
{[%clk 00:20:14]} {[%emt 00:00:12]} 53. Kf3 {[%clk 00:18:48]} {[%emt 00:00:32]}
Kg7 {[%clk 00:20:38]} {[%emt 00:00:05]} 54. Ke3 {[%clk 00:19:05]} {[%emt
00:00:12]} Kf7 {[%clk 00:21:03]} {[%emt 00:00:05]} 55. Kd4 {[%clk 00:19:28]}
{[%emt 00:00:07]} Ke7 {[%clk 00:21:26]} {[%emt 00:00:07]} 56. Nc5 {[%clk
00:16:01]} {[%emt 00:03:57]} Nb2 {[%clk 00:21:52]} {[%emt 00:00:04]} 57. Nd3
{[%clk 00:16:17]} {[%emt 00:00:14]} 1-0